Workbook

Sheet IEP-RTR
A1: BUS I | B1: BUS J | C1: CKT | E1: Flujo | F1: Perdidas | N1: MWFIJ_FJI
A2: 1101 | B2: 1124 | C2: 2 | D2: =_xlfn.CONCAT(A2:C2) -> 110111242 | E2: 70.38339129 | F2: 0.2046919155 | G2: =VLOOKUP(D2,M:N,2,0) -> 70.60138419 | M2: 110111241 | N2: 71.15512054
A3: 1101 | B3: 1124 | C3: 1 | D3: =_xlfn.CONCAT(A3:C3) -> 110111241 | E3: 70.93541789 | F3: 0.206305174 | G3: =VLOOKUP(D3,M:N,2,0) -> 71.15512054 | M3: 110111242 | N3: 70.60138419
A4: 1101 | B4: 1140 | C4: 1 | D4: 110111401 | E4: 66.73267878 | F4: 0.1260269868 | G4: 66.29453304 | M4: 110111401 | N4: 66.29453304
A5: 1101 | B5: 1908 | C5: 1 | D5: 110119081 | E5: 8.569373297e-35 | F5: 1.451793317e-73 | G5: 0 | M5: 110119081 | N5: 0
A6: 1102 | B6: 1105 | C6: 1 | D6: 110211051 | E6: -4.756146826e-36 | F6: 1.986117885e-75 | G6: 0 | M6: 110211051 | N6: 0
A7: 1102 | B7: 1106 | C7: 1 | D7: 110211061 | E7: -50.46615478 | F7: 0.001273416389 | G7: -50.418857 | M7: 110211061 | N7: -50.418857
A8: 1102 | B8: 1106 | C8: 2 | D8: 110211062 | E8: -38.19060362 | F8: 0.001458522205 | G8: -38.1548107 | M8: 110211062 | N8: -38.1548107
A9: 1102 | B9: 1109 | C9: 1 | D9: 110211091 | E9: 150.0726535 | F9: 1.326534098 | G9: 149.8566351 | M9: 110211091 | N9: 149.8566351
A10: 1102 | B10: 1111 | C10: 1 | D10: 110211111 | E10: -3.154977663e-45 | F10: 5.176019708e-95 | G10: 0 | M10: 110211111 | N10: 0
A11: 1102 | B11: 1140 | C11: 1 | D11: 110211401 | E11: -73.7137254 | F11: 0.06194433176 | G11: -73.57845607 | M11: 110211401 | N11: -73.57845607
A12: 1102 | B12: 1151 | C12: 1 | D12: 110211511 | E12: -0.5587748476 | F12: 0 | G12: -0.55909229 | M12: 110211511 | N12: -0.55909229
A13: 1103 | B13: 1141 | C13: 1 | D13: 110311411 | E13: 7.63531266e-23 | F13: 6.237885937e-50 | G13: 0 | M13: 110311411 | N13: 0
A14: 1103 | B14: 1141 | C14: 2 | D14: 110311412 | E14: -7.63531266e-23 | F14: 6.237885937e-50 | G14: 0 | M14: 110311412 | N14: 0
A15: 1106 | B15: 1109 | C15: 1 | D15: 110611091 | E15: 152.3738561 | F15: 1.351275497 | G15: 152.1547598 | M15: 110611091 | N15: 152.1547598
A16: 1106 | B16: 1113 | C16: 1 | D16: 110611131 | E16: 17.54341247 | F16: 0 | G16: 17.54847228 | M16: 110611131 | N16: 17.54847228
A17: 1106 | B17: 1120 | C17: 1 | D17: 110611201 | E17: -154.1289335 | F17: 0.1330320775 | G17: -153.8443625 | M17: 110611201 | N17: -153.8443625
A18: 1106 | B18: 1132 | C18: 1 | D18: 110611321 | E18: -141.4234417 | F18: 0.4460131542 | G18: -141.4100141 | M18: 110611321 | N18: -141.4100141
A19: 1106 | B19: 1151 | C19: 1 | D19: 110611511 | E19: -0.6494541322 | F19: 0 | G19: -0.65000184 | M19: 110611511 | N19: -0.65000184
A20: 1107 | B20: 1108 | C20: 1 | D20: 110711081 | E20: 44.61278956 | F20: 0.04796625392 | G20: 44.29679637 | M20: 110711081 | N20: 44.29679637
A21: 1107 | B21: 1108 | C21: 2 | D21: 110711082 | E21: 44.61278956 | F21: 0.04796625392 | G21: 44.29679637 | M21: 110711082 | N21: 44.29679637
A22: 1107 | B22: 1109 | C22: 1 | D22: 110711091 | E22: -81.54308505 | F22: 0.1090481054 | G22: -81.29528875 | M22: 110711091 | N22: -81.29528875
A23: 1107 | B23: 1109 | C23: 2 | D23: 110711092 | E23: -81.54308505 | F23: 0.1090481054 | G23: -81.29528875 | M23: 110711092 | N23: -81.29528875
A24: 1107 | B24: 1155 | C24: 1 | D24: 110711551 | E24: 1.310150994e-23 | F24: 0 | G24: 0 | M24: 110711551 | N24: 0
A25: 1107 | B25: 1155 | C25: 2 | D25: 110711552 | E25: 2.794799476e-23 | F25: 0 | G25: 0 | M25: 110711552 | N25: 0
A26: 1107 | B26: 1170 | C26: 1 | D26: 110711701 | E26: -33.22378616 | F26: 0.02472556725 | G26: -33.08595117 | M26: 110711701 | N26: -33.08595117
A27: 1108 | B27: 1153 | C27: 2 | D27: 110811532 | E27: 0.07718232535 | F27: 0 | G27: 0.07021058 | M27: 110811532 | N27: 0.07021058
A28: 1108 | B28: 1153 | C28: 3 | D28: 110811533 | E28: 0.07718232535 | F28: 0 | G28: 0.07021058 | M28: 110811533 | N28: 0.07021058
A29: 1108 | B29: 1153 | C29: 4 | D29: 110811534 | E29: 0.07718232535 | F29: 0 | G29: 0.07021058 | M29: 110811534 | N29: 0.07021058
A30: 1108 | B30: 1444 | C30: 1 | D30: 110814441 | E30: -23.82019106 | F30: 0.056286229 | G30: -23.92978648 | M30: 110814441 | N30: -23.92978648
A31: 1108 | B31: 1444 | C31: 2 | D31: 110814442 | E31: -23.82019106 | F31: 0.056286229 | G31: -23.92978648 | M31: 110814442 | N31: -23.92978648
A32: 1108 | B32: 1771 | C32: 1 | D32: 110817711 | E32: 13.86296434 | F32: 0.01550906966 | G32: 13.48055607 | M32: 110817711 | N32: 13.48055607
A33: 1109 | B33: 1154 | C33: 4 | D33: 110911544 | E33: -4.007248802 | F33: 0 | G33: -3.99663754 | M33: 110911543 | N33: -7.39999047
A34: 1109 | B34: 1154 | C34: 5 | D34: 110911545 | E34: -10.05494255 | F34: 0 | G34: -10.02831689 | M34: 110911544 | N34: -3.99663754
A35: 1109 | B35: 1154 | C35: 3 | D35: 110911543 | E35: -7.419637798 | F35: 0 | G35: -7.39999047 | M35: 110911545 | N35: -10.02831689
A36: 1110 | B36: 1119 | C36: 1 | D36: 111011191 | E36: 4.058661337 | F36: 0.0007824547629 | G36: 4.05629622 | M36: 111011191 | N36: 4.05629622
A37: 1110 | B37: 1145 | C37: 1 | D37: 111011451 | E37: -7.251967878 | F37: 0.00187750006 | G37: -7.24840051 | M37: 111011451 | N37: -7.24840051
A38: 1110 | B38: 1306 | C38: 1 | D38: 111013061 | E38: 2.244018018 | F38: 0 | G38: 2.24317379 | M38: 111013061 | N38: 2.24317379
A39: 1113 | B39: 1115 | C39: 1 | D39: 111311151 | E39: 19.1624412 | F39: 0.0339292017 | G39: 19.10790831 | M39: 111311151 | N39: 19.10790831
A40: 1113 | B40: 1502 | C40: 1 | D40: 111315021 | E40: -7.411004552 | F40: 0 | G40: -7.41314201 | M40: 111315021 | N40: -7.41314201
A41: 1113 | B41: 1755 | C41: 1 | D41: 111317551 | E41: 5.772753478 | F41: 0.004515494509 | G41: 5.83453147 | M41: 111317551 | N41: 5.83453147
A42: 1114 | B42: 1115 | C42: 2 | D42: 111411152 | E42: -9.563886968 | F42: 0.02122056067 | G42: -9.53672394 | M42: 111411152 | N42: -9.53672394
A43: 1114 | B43: 1122 | C43: 1 | D43: 111411221 | E43: -9.556889334 | F43: 0.01426639169 | G43: -9.52975601 | M43: 111411221 | N43: -9.52975601
A44: 1114 | B44: 1154 | C44: 1 | D44: 111411541 | E44: 6.73314885 | F44: 0 | G44: 6.71404676 | M44: 111411541 | N44: 6.71404676
A45: 1114 | B45: 1154 | C45: 2 | D45: 111411542 | E45: 6.73314885 | F45: 0 | G45: 6.71404676 | M45: 111411542 | N45: 6.71404676
A46: 1115 | B46: 1122 | C46: 1 | D46: 111511221 | E46: 9.567500938 | F46: 0.00695681764 | G46: 9.54030743 | M46: 111511221 | N46: 9.54030743
A47: 1119 | B47: 1304 | C47: 1 | D47: 111913041 | E47: 2.819602128 | F47: 0 | G47: 2.81795921 | M47: 111913041 | N47: 2.81795921
A48: 1119 | B48: 1820 | C48: 1 | D48: 111918201 | E48: 1.528138778e-24 | F48: 0 | G48: 0 | M48: 111918201 | N48: 0
A49: 1119 | B49: 1841 | C49: 1 | D49: 111918411 | E49: 3.796519393e-23 | F49: 5.722183121e-50 | G49: 0 | M49: 111918411 | N49: 0
A50: 1120 | B50: 1121 | C50: 1 | D50: 112011211 | E50: -2.469581221e-35 | F50: 3.671496506e-74 | G50: 0 | M50: 112011211 | N50: 0
A51: 1120 | B51: 1140 | C51: 1 | D51: 112011401 | E51: -146.0758215 | F51: 0.04694392035 | G51: -145.7909137 | M51: 112011401 | N51: -145.7909137
A52: 1122 | B52: 1174 | C52: 1 | D52: 112211741 | E52: 6.20155635e-36 | F52: 2.193333945e-75 | G52: 0 | M52: 112211741 | N52: 0
A53: 1124 | B53: 1129 | C53: 1 | D53: 112411291 | E53: 62.46583137 | F53: 0.2805523684 | G53: 63.30465992 | M53: 112411291 | N53: 63.30465992
A54: 1124 | B54: 29161 | C54: 1 | D54: 1124291611 | E54: 25.47171893 | F54: 0.08298260272 | G54: 25.20444597 | M54: 1124291611 | N54: 25.20444597
A55: 1126 | B55: 1129 | C55: 2 | D55: 112611292 | E55: -62.32011787 | F55: 0.01087463186 | G55: -63.15500704 | M55: 112611292 | N55: -63.15500704
A56: 1126 | B56: 1434 | C56: 1 | D56: 112614341 | E56: 1.569286786 | F56: 0 | G56: 1.35678748 | M56: 112614341 | N56: 1.35678748
A57: 1126 | B57: 29162 | C57: 1 | D57: 1126291621 | E57: 1.508263709 | F57: 7.59803045e-05 | G57: -0.74501977 | M57: 1126291621 | N57: -0.74501977
A58: 1128 | B58: 1110 | C58: 1 | D58: 112811101 | E58: -2.3945213e-41 | F58: 0 | G58: 0 | M58: 112811101 | N58: 0
A59: 1128 | B59: 14320 | C59: 1 | D59: 1128143201 | E59: 4.599090976e-35 | F59: 2.559348174e-74 | G59: 0 | M59: 1128143201 | N59: 0
A60: 1131 | B60: 1174 | C60: 1 | D60: 113111741 | E60: -3.556249233e-35 | F60: 4.847560068e-74 | G60: 0 | M60: 113111741 | N60: 0
A61: 1132 | B61: 1145 | C61: 1 | D61: 113211451 | E61: -32.48510322 | F61: 0.07598029906 | G61: -32.48866318 | M61: 113211451 | N61: -32.48866318
A62: 1132 | B62: 1219 | C62: 1 | D62: 113212191 | E62: -11.81541186 | F62: 0.004997821678 | G62: -11.79838308 | M62: 113212191 | N62: -11.79838308
A63: 1133 | B63: 1444 | C63: 1 | D63: 113314441 | E63: 1.153638952 | F63: 0.0001220951911 | G63: 1.15363895 | M63: 113314441 | N63: 1.15363895
A64: 1140 | B64: 1166 | C64: 1 | D64: 114011661 | E64: -1.452683868e-35 | F64: 2.962847751e-75 | G64: 0 | M64: 114011661 | N64: 0
A65: 1141 | B65: 1444 | C65: 1 | D65: 114114441 | E65: 17.83386463 | F65: 0.01851031954 | G65: 17.92160651 | M65: 114114441 | N65: 17.92160651
A66: 1141 | B66: 1444 | C66: 2 | D66: 114114442 | E66: 17.83386463 | F66: 0.01851031954 | G66: 17.92160651 | M66: 114114442 | N66: 17.92160651
A67: 1141 | B67: 1771 | C67: 1 | D67: =_xlfn.CONCAT(A67:C67) -> 114117711 | E67: 35.58979924 | F67: 1.525787087 | G67: =VLOOKUP(D67,M:N,2,0) -> 35.42133797 | M67: 114117711 | N67: 35.42133797
A68: 1141 | B68: 1845 | C68: 1 | D68: 114118451 | E68: -16.0084891 | F68: 0.01004585156 | G68: -16.0084891 | M68: 114118451 | N68: -16.0084891
A69: 1141 | B69: 1845 | C69: 2 | D69: 114118452 | E69: -16.0084891 | F69: 0.01004585156 | G69: -16.0084891 | M69: 114118452 | N69: -16.0084891
A70: 1151 | B70: 1240 | C70: 1 | D70: 115112401 | E70: -1.480384468 | F70: 0.0008538232723 | G70: -1.48147941 | M70: 115112401 | N70: -1.48147941
A71: 1151 | B71: 1504 | C71: 1 | D71: 115115041 | E71: 0.2717285765 | F71: 0 | G71: 0.27195774 | M71: 115115041 | N71: 0.27195774
A72: 1151 | B72: 12177 | C72: 1 | D72: 1151121771 | E72: 2.056127744e-25 | F72: 7.478732836e-54 | G72: 0 | M72: 1151121771 | N72: 0
A73: 1151 | B73: 12204 | C73: 1 | D73: 1151122041 | E73: -7.800680694e-24 | F73: 2.68351231e-51 | G73: 0 | M73: 1151122041 | N73: 0
A74: 1151 | B74: 12205 | C74: 1 | D74: 1151122051 | E74: 3.749050736e-35 | F74: 5.861094053e-74 | G74: 0 | M74: 1151122051 | N74: 0
A75: 1151 | B75: 12241 | C75: 1 | D75: 1151122411 | E75: 1.309588502e-36 | F75: 7.369449727e-76 | G75: 0 | M75: 1151122411 | N75: 0
A76: 1153 | B76: 1408 | C76: 1 | D76: 115314081 | E76: 0.3299457645 | F76: 8.823444021e-05 | G76: 0.30014597 | M76: 115314081 | N76: 0.30014597
A77: 1153 | B77: 1503 | C77: 2 | D77: 115315032 | E77: -0.0328143019 | F77: 0 | G77: -0.02985024 | M77: 115315032 | N77: -0.02985024
A78: 1153 | B78: 1505 | C78: 3 | D78: 115315053 | E78: -0.0328143019 | F78: 0 | G78: -0.02985024 | M78: 115315053 | N78: -0.02985024
A79: 1153 | B79: 1518 | C79: 4 | D79: 115315184 | E79: -0.0328143019 | F79: 0 | G79: -0.02985024 | M79: 115315184 | N79: -0.02985024
A80: 1154 | B80: 1159 | C80: 1 | D80: 115411591 | E80: -5.654750203 | F80: 0.001637181432 | G80: -5.65024452 | M80: 115411591 | N80: -5.65024452
A81: 1154 | B81: 1163 | C81: 1 | D81: 115411631 | E81: 1.158753676e-34 | F81: 2.067773526e-73 | G81: 0 | M81: 115411631 | N81: 0
A82: 1154 | B82: 1204 | C82: 1 | D82: 115412041 | E82: 9.216242704e-24 | F82: 2.511650062e-50 | G82: 0 | M82: 115412041 | N82: 0
A83: 1154 | B83: 1204 | C83: 2 | D83: 115412042 | E83: 1.289009849e-23 | F83: 3.470970409e-50 | G83: 0 | M83: 115412042 | N83: 0
A84: 1154 | B84: 1204 | C84: 3 | D84: 115412043 | E84: 9.110559226e-25 | F84: 1.733917826e-52 | G84: 0 | M84: 115412043 | N84: 0
A85: 1154 | B85: 1425 | C85: 1 | D85: 115414251 | E85: 0.2143252514 | F85: 5.157157635e-05 | G85: 0.22061289 | M85: 115414251 | N85: 0.22061289
A86: 1154 | B86: 1509 | C86: 1 | D86: 115415091 | E86: -2.818367563 | F86: 0 | G86: -2.81037179 | M86: 115415091 | N86: -2.81037179
A87: 1154 | B87: 1511 | C87: 2 | D87: 115415112 | E87: -2.818367563 | F87: 0 | G87: -2.81037179 | M87: 115415112 | N87: -2.81037179
A88: 1154 | B88: 1513 | C88: 3 | D88: 115415133 | E88: 3.060784246 | F88: 0 | G88: 3.05267924 | M88: 115415133 | N88: 3.05267924
A89: 1154 | B89: 12080 | C89: 1 | D89: 1154120801 | E89: 1.208773831e-22 | F89: 7.524840998e-49 | G89: 0 | M89: 1154120801 | N89: 0
A90: 1155 | B90: 1507 | C90: 1 | D90: 115515071 | E90: -2.683446868e-24 | F90: 0 | G90: 0 | M90: 115515071 | N90: 0
A91: 1155 | B91: 1522 | C91: 2 | D91: 115515222 | E91: -5.456596087e-24 | F91: 0 | G91: 0 | M91: 115515222 | N91: 0
A92: 1159 | B92: 1331 | C92: 1 | D92: 115913311 | E92: -2.829286108 | F92: 0.003003423428 | G92: -2.82703022 | M92: 115913311 | N92: -2.82703022
A93: 1159 | B93: 1331 | C93: 2 | D93: 115913312 | E93: -2.829286108 | F93: 0.003003423428 | G93: -2.82703022 | M93: 115913312 | N93: -2.82703022
A94: 1163 | B94: 12243 | C94: 1 | D94: 1163122431 | E94: 3.046623303e-37 | F94: 9.746009229e-78 | G94: 0 | M94: 1163122431 | N94: 0
A95: 1163 | B95: 12269 | C95: 1 | D95: 1163122691 | E95: -7.570539038e-35 | F95: 1.398438696e-73 | G95: 0 | M95: 1163122691 | N95: 0
A96: 1164 | B96: 1117 | C96: 1 | D96: 116411171 | E96: -1.595769985e-45 | F96: 1.064429411e-95 | G96: 0 | M96: 116411171 | N96: 0
A97: 1164 | B97: 1140 | C97: 1 | D97: 116411401 | E97: -3.443733611e-35 | F97: 2.084865149e-74 | G97: 0 | M97: 116411401 | N97: 0
A98: 1165 | B98: 1169 | C98: 1 | D98: 116511691 | E98: 49.55537752 | F98: 0.02524496033 | G98: 49.55537752 | M98: 116511691 | N98: 49.55537752
A99: 1168 | B99: 1132 | C99: 1 | D99: 116811321 | E99: 97.42785569 | F99: 0.08286679307 | G99: 97.42785569 | M99: 116811321 | N99: 97.42785569
A100: 1169 | B100: 1168 | C100: 1 | D100: 116911681 | E100: 49.52752206 | F100: 0.03046595498 | G100: 49.52752206 | M100: 116911681 | N100: 49.52752206
A101: 1170 | B101: 1124 | C101: 1 | D101: 117011241 | E101: -31.89377115 | F101: 0.01444441946 | G101: -31.75577143 | M101: 117011241 | N101: -31.75577143
A102: 1204 | B102: 12080 | C102: 1 | D102: 1204120801 | E102: -5.780555715e-24 | F102: 7.621921439e-51 | G102: 0 | M102: 1204120801 | N102: 0
A103: 1204 | B103: 12089 | C103: 1 | D103: 1204120891 | E103: -1.278160911e-35 | F103: 1.290619298e-74 | G103: 0 | M103: 1204120891 | N103: 0
A104: 1206 | B104: 12178 | C104: 1 | D104: 1206121781 | E104: 2.030203054e-36 | F104: 7.031661893e-76 | G104: 0 | M104: 1206121781 | N104: 0
A105: 1207 | B105: 12178 | C105: 1 | D105: 1207121781 | E105: -1.907212935e-35 | F105: 3.157316303e-74 | G105: 0 | M105: 1207121781 | N105: 0
A106: 1215 | B106: 12007 | C106: 1 | D106: 1215120071 | E106: 3.765983255e-36 | F106: 2.633714369e-75 | G106: 0 | M106: 1215120071 | N106: 0
A107: 1215 | B107: 12094 | C107: 1 | D107: 1215120941 | E107: -4.81354951e-36 | F107: 6.612791886e-75 | G107: 0 | M107: 1215120941 | N107: 0
A108: 1215 | B108: 12280 | C108: 1 | D108: 1215122801 | E108: -1.358249374e-35 | F108: 1.691719528e-74 | G108: 0 | M108: 1215122801 | N108: 0
A109: 1216 | B109: 12183 | C109: 1 | D109: 1216121831 | E109: 4.229252617e-35 | F109: 2.504120878e-74 | G109: 0 | M109: 1216121831 | N109: 0
A110: 1217 | B110: 12283 | C110: 1 | D110: 1217122831 | E110: -1.314812688e-36 | F110: 7.604693853e-76 | G110: 0 | M110: 1217122831 | N110: 0
A111: 1219 | B111: 1140 | C111: 1 | D111: 121911401 | E111: 56.68235746 | F111: 0.1414635312 | G111: 56.69935102 | M111: 121911401 | N111: 56.69935102
A112: 1219 | B112: 1218 | C112: 1 | D112: 121912181 | E112: -3.013601533e-45 | F112: 0 | G112: 0 | M112: 121912181 | N112: 0
A113: 1220 | B113: 1241 | C113: 1 | D113: 122012411 | E113: 1.712439995e-36 | F113: 1.498189082e-75 | G113: 0 | M113: 122012411 | N113: 0
A114: 1223 | B114: 1166 | C114: 1 | D114: 122311661 | E114: 2.938989642e-45 | F114: 0 | G114: 0 | M114: 122311661 | N114: 0
A115: 1240 | B115: 12219 | C115: 1 | D115: 1240122191 | E115: -1.481157127 | F115: 0.000691494092 | G115: -1.48225321 | M115: 1240122191 | N115: -1.48225321
A116: 1241 | B116: 12219 | C116: 1 | D116: 1241122191 | E116: 1.481511983 | F116: 1.821748536e-05 | G116: 1.4826086 | M116: 1241122191 | N116: 1.4826086
A117: 1241 | B117: 12220 | C117: 1 | D117: 1241122201 | E117: -1.481531188 | F117: 2.019339888e-05 | G117: -1.48262783 | M117: 1241122201 | N117: -1.48262783
A118: 1249 | B118: 12049 | C118: 1 | D118: 1249120491 | E118: -1.72205039e-36 | F118: 1.582071601e-75 | G118: 0 | M118: 1249120491 | N118: 0
A119: 1251 | B119: 12292 | C119: 1 | D119: 1251122921 | E119: 4.316545687e-36 | F119: 2.216157479e-75 | G119: 0 | M119: 1251122921 | N119: 0
A120: 1301 | B120: 1331 | C120: 1 | D120: 130113311 | E120: 5.668801264 | F120: 0.0144512479 | G120: 5.66427316 | M120: 130113311 | N120: 5.66427316
A121: 1301 | B121: 1810 | C121: 1 | D121: 130118101 | E121: -5.684543251 | F121: 0.01703272625 | G121: -5.67998997 | M121: 130118101 | N121: -5.67998997
A122: 1302 | B122: 1310 | C122: 1 | D122: 130213101 | E122: 0.06414068514 | F122: 1.011762781e-05 | G122: 0.06408903 | M122: 130213101 | N122: 0.06408903
A123: 1302 | B123: 1310 | C123: 2 | D123: 130213102 | E123: 0.08145033195 | F123: 5.112944472e-06 | G123: 0.08138474 | M123: 130213102 | N123: 0.08138474
A124: 1302 | B124: 1862 | C124: 1 | D124: 130218621 | E124: -0.1456047124 | F124: 1.216010401e-05 | G124: -0.14548744 | M124: 130218621 | N124: -0.14548744
A125: 1303 | B125: 1816 | C125: 1 | D125: 130318161 | E125: -2.560846042 | F125: 0.004503332213 | G125: -2.56015069 | M125: 130318161 | N125: -2.56015069
A126: 1303 | B126: 1833 | C126: 1 | D126: 130318331 | E126: 1.074991768 | F126: 0.0009255258873 | G126: 1.07320015 | M126: 130318331 | N126: 1.07320015
A127: 1303 | B127: 12220 | C127: 1 | D127: 1303122201 | E127: 1.482340565 | F127: 0.001598560158 | G127: 1.48343841 | M127: 1303122201 | N127: 1.48343841
A128: 1304 | B128: 1321 | C128: 1 | D128: 130413211 | E128: -0.4746185117 | F128: 0.0001050400118 | G128: -0.47423652 | M128: 130413211 | N128: -0.47423652
A129: 1304 | B129: 1329 | C129: 1 | D129: 130413291 | E129: 4.67754567 | F129: 0.001505305024 | G129: 4.67468298 | M129: 130413291 | N129: 4.67468298
A130: 1304 | B130: 1372 | C130: 1 | D130: 130413721 | E130: -0.1454720676 | F130: 1.969347116e-05 | G130: -0.14535501 | M130: 130413721 | N130: -0.14535501
A131: 1304 | B131: 1506 | C131: 1 | D131: =_xlfn.CONCAT(A131:C131) -> 130415061 | E131: -1.238667982 | F131: 0 | G131: =VLOOKUP(D131,M:N,2,0) -> -1.23794624 | M131: 130415061 | N131: -1.23794624
A132: 1305 | B132: 1325 | C132: 1 | D132: 130513251 | E132: 7.973509054e-38 | F132: 7.261747422e-78 | G132: 0 | M132: 130513251 | N132: 0
A133: 1305 | B133: 1327 | C133: 1 | D133: 130513271 | E133: -1.202582751e-36 | F133: 1.924609976e-75 | G133: 0 | M133: 130513271 | N133: 0
A134: 1305 | B134: 1520 | C134: 1 | D134: 130515201 | E134: -3.966667717e-25 | F134: 0 | G134: 0 | M134: 130515201 | N134: 0
A135: 1306 | B135: 1338 | C135: 1 | D135: 130613381 | E135: 2.571125417 | F135: 0.0006630517966 | G135: 2.57042447 | M135: 130613381 | N135: 2.57042447
A136: 1306 | B136: 1374 | C136: 1 | D136: 130613741 | E136: 0.4748721082 | F136: 4.832540415e-05 | G136: 0.47448971 | M136: 130613741 | N136: 0.47448971
A137: 1306 | B137: 1501 | C137: 1 | D137: 130615011 | E137: -0.9479585444 | F137: 0 | G137: -0.94760191 | M137: 130615011 | N137: -0.94760191
A138: 1306 | B138: 1828 | C138: 1 | D138: 130618281 | E138: 2.70442429e-36 | F138: 9.434944855e-76 | G138: 0 | M138: 130618281 | N138: 0
A139: 1306 | B139: 1862 | C139: 1 | D139: 130618621 | E139: 0.145617071 | F139: 1.255699299e-05 | G139: 0.14549978 | M139: 130618621 | N139: 0.14549978
A140: 1306 | B140: 1869 | C140: 1 | D140: 130618691 | E140: 5.657551542e-36 | F140: 1.081962687e-74 | G140: 0 | M140: 130618691 | N140: 0
A141: 1308 | B141: 1310 | C141: 1 | D141: 130813101 | E141: -0.1455455373 | F141: 7.572890645e-05 | G141: -0.14542836 | M141: 130813101 | N141: -0.14542836
A142: 1308 | B142: 1312 | C142: 1 | D142: 130813121 | E142: 5.947786897e-38 | F142: 5.512314649e-78 | G142: 0 | M142: 130813121 | N142: 0
A143: 1309 | B143: 1336 | C143: 1 | D143: 130913361 | E143: -2.568486286 | F143: 0.001285119327 | G143: -2.56778678 | M143: 130913361 | N143: -2.56778678
A144: 1309 | B144: 1835 | C144: 1 | D144: 130918351 | E144: 2.566051064 | F144: 0.003585324535 | G144: 2.56535288 | M144: 130918351 | N144: 2.56535288
A145: 1314 | B145: 1339 | C145: 1 | D145: 131413391 | E145: 9.697777454e-36 | F145: 1.446441131e-74 | G145: 0 | M145: 131413391 | N145: 0
A146: 1314 | B146: 1374 | C146: 1 | D146: 131413741 | E146: -0.4748028016 | F146: 9.0287799e-05 | G146: -0.47442051 | M146: 131413741 | N146: -0.47442051
A147: 1314 | B147: 1813 | C147: 1 | D147: 131418131 | E147: 0.4747531386 | F147: 9.038160759e-06 | G147: 0.47437093 | M147: 131418131 | N147: 0.47437093
A148: 1315 | B148: 1318 | C148: 1 | D148: 131513181 | E148: -4.658961546 | F148: 0.01777932127 | G148: -4.65612154 | M148: 131513181 | N148: -4.65612154
A149: 1315 | B149: 1810 | C149: 1 | D149: 131518101 | E149: 5.708361715 | F149: 0.03060420155 | G149: 5.70377019 | M149: 131518101 | N149: 5.70377019
A150: 1315 | B150: 1833 | C150: 1 | D150: 131518331 | E150: -1.074060468 | F150: 0.0009370740633 | G150: -1.07227195 | M150: 131518331 | N150: -1.07227195
A151: 1318 | B151: 1329 | C151: 1 | D151: 131813291 | E151: -4.672322112 | F151: 0.008941811269 | G151: -4.66946581 | M151: 131813291 | N151: -4.66946581
A152: 1321 | B152: 1322 | C152: 1 | D152: 132113221 | E152: -0.4746903651 | F152: 3.866678977e-05 | G152: -0.47430826 | M152: 132113221 | N152: -0.47430826
A153: 1322 | B153: 1813 | C153: 2 | D153: 132218132 | E153: -0.474729159 | F153: 3.892101464e-05 | G153: -0.47434699 | M153: 132218132 | N153: -0.47434699
A154: 1323 | B154: 1863 | C154: 1 | D154: 132318631 | E154: 1.71039904e-36 | F154: 2.135881907e-75 | G154: 0 | M154: 132318631 | N154: 0
A155: 1324 | B155: 1372 | C155: 1 | D155: 132413721 | E155: 5.018702357e-37 | F155: 1.702666439e-76 | G155: 0 | M155: 132413721 | N155: 0
A156: 1327 | B156: 1388 | C156: 1 | D156: 132713881 | E156: 2.869271719e-37 | F156: 1.179748804e-76 | G156: 0 | M156: 132713881 | N156: 0
A157: 1336 | B157: 1337 | C157: 1 | D157: 133613371 | E157: -9.526436319e-36 | F157: 1.248761128e-74 | G157: 0 | M157: 133613371 | N157: 0
A158: 1336 | B158: 1338 | C158: 1 | D158: 133613381 | E158: -2.569961368 | F158: 0.001665045231 | G158: -2.56926106 | M158: 133613381 | N158: -2.56926106
A159: 1403 | B159: 1416 | C159: 1 | D159: 140314161 | E159: 2.320261908e-35 | F159: 3.900967661e-73 | G159: 0 | M159: 140314161 | N159: 0
A160: 1403 | B160: 1764 | C160: 1 | D160: 140317641 | E160: -7.148403342e-36 | F160: 2.981154767e-74 | G160: 0 | M160: 140317641 | N160: 0
A161: 1406 | B161: 1411 | C161: 1 | D161: 140614111 | E161: 0.2141291965 | F161: 0.0002655020267 | G161: 0.22040517 | M161: 140614111 | N161: 0.22040517
A162: 1406 | B162: 1439 | C162: 1 | D162: 140614391 | E162: -0.2142799626 | F162: 3.603020859e-05 | G162: -0.2205649 | M162: 140614391 | N162: -0.2205649
A163: 1407 | B163: 1424 | C163: 1 | D163: 140714241 | E163: -6.099477469e-36 | F163: 4.482664823e-74 | G163: 0 | M163: 140714241 | N163: 0
A164: 1407 | B164: 1431 | C164: 1 | D164: 140714311 | E164: -2.535710527 | F164: 0.006629795524 | G164: -2.5005387 | M164: 140714311 | N164: -2.5005387
A165: 1407 | B165: 1432 | C165: 1 | D165: 140714321 | E165: 0.05406291992 | F165: 6.535379257e-06 | G165: 0.0563588 | M165: 140714321 | N165: 0.0563588
A166: 1407 | B166: 1736 | C166: 1 | D166: 140717361 | E166: 2.477744927 | F166: 0.001169030257 | G166: 2.44038575 | M166: 140717361 | N166: 2.44038575
A167: 1408 | B167: 1414 | C167: 1 | D167: 140814141 | E167: 0.3298866838 | F167: 2.992693665e-05 | G167: 0.30009708 | M167: 140814141 | N167: 0.30009708
A168: 1408 | B168: 1667 | C168: 1 | D168: 140816671 | E168: -7.502166204e-34 | F168: 4.502599821e-72 | G168: 0 | M168: 140816671 | N168: 0
A169: 1409 | B169: 1432 | C169: 1 | D169: 140914321 | E169: -0.05405857257 | F169: 2.159309097e-06 | G169: -0.05635408 | M169: 140914321 | N169: -0.05635408
A170: 1409 | B170: 1435 | C170: 1 | D170: 140914351 | E170: -1.125983912 | F170: 0.0003733788124 | G170: -1.09691508 | M170: 140914351 | N170: -1.09691508
A171: 1409 | B171: 1516 | C171: 1 | D171: 140915161 | E171: 2.583766654 | F171: 0 | G171: 2.53316919 | M171: 140915161 | N171: 2.53316919
A172: 1409 | B172: 1521 | C172: 1 | D172: 140915211 | E172: -2.142860708 | F172: 0 | G172: -2.101947 | M172: 140915211 | N172: -2.101947
A173: 1411 | B173: 1428 | C173: 1 | D173: 141114281 | E173: 7.476338728e-37 | F173: 1.180515933e-75 | G173: 0 | M173: 141114281 | N173: 0
A174: 1411 | B174: 1762 | C174: 1 | D174: 141117621 | E174: 7.66930913e-37 | F174: 2.611532632e-76 | G174: 0 | M174: 141117621 | N174: 0
A175: 1414 | B175: 1415 | C175: 1 | D175: 141414151 | E175: -2.045808301 | F175: 0.003212660539 | G175: -2.03696072 | M175: 141414151 | N175: -2.03696072
A176: 1414 | B176: 1433 | C176: 1 | D176: 141414331 | E176: 2.372624134 | F176: 0.002899112821 | G176: 2.33405014 | M176: 141414331 | N176: 2.33405014
A177: 1415 | B177: 1449 | C177: 1 | D177: 141514491 | E177: -2.048015474 | F177: 0.001201686255 | G177: -2.03914884 | M177: 141514491 | N177: -2.03914884
A178: 1416 | B178: 1447 | C178: 1 | D178: 141614471 | E178: -0.169391441 | F178: 6.246566307e-06 | G178: -0.16651146 | M178: 141614471 | N178: -0.16651146
A179: 1416 | B179: 1447 | C179: 2 | D179: 141614472 | E179: -0.1606015598 | F179: 6.57975884e-06 | G179: -0.15787103 | M179: 141614472 | N179: -0.15787103
A180: 1416 | B180: 1758 | C180: 1 | D180: 141617581 | E180: 0.32995409 | F180: 6.499521181e-05 | G180: 0.32434489 | M180: 141617581 | N180: 0.32434489
A181: 1417 | B181: 1718 | C181: 1 | D181: 141717181 | E181: -2.936189684e-36 | F181: 9.31090665e-76 | G181: 0 | M181: 141717181 | N181: 0
A182: 1418 | B182: 1433 | C182: 1 | D182: 141814331 | E182: -1.12783209 | F182: 0.0003653199001 | G182: -1.09866899 | M182: 141814331 | N182: -1.09866899
A183: 1418 | B183: 1713 | C183: 1 | D183: 141817131 | E183: 1.127256845 | F183: 0.0007851704696 | G183: 1.0981231 | M183: 141817131 | N183: 1.0981231
A184: 1422 | B184: 1411 | C184: 1 | D184: 142214111 | E184: -0.2139964455 | F184: 0 | G184: -0.22026452 | M184: 142214111 | N184: -0.22026452
A185: 1422 | B185: 1434 | C185: 1 | D185: 142214341 | E185: -7.310397534 | F185: 0.01387886457 | G185: -7.15942946 | M185: 142214341 | N185: -7.15942946
A186: 1422 | B186: 1445 | C186: 1 | D186: 142214451 | E186: 7.508380865 | F186: 0.01814736462 | G186: 7.36430939 | M186: 142214451 | N186: 7.36430939
A187: 1423 | B187: 1755 | C187: 1 | D187: 142317551 | E187: -5.765489656 | F187: 0.01001215034 | G187: -5.82711148 | M187: 142317551 | N187: -5.82711148
A188: 1423 | B188: 1795 | C188: 1 | D188: 142317951 | E188: 5.760306062 | F188: 0.0003550380474 | G188: 5.8218165 | M188: 142317951 | N188: 5.8218165
A189: 1425 | B189: 1439 | C189: 1 | D189: 142514391 | E189: 0.2142987217 | F189: 1.487935724e-06 | G189: 0.22058478 | M189: 142514391 | N189: 0.22058478
A190: 1427 | B190: 1431 | C190: 1 | D190: 142714311 | E190: 2.542885787 | F190: 0.007720724141 | G190: 2.50751599 | M190: 142714311 | N190: 2.50751599
A191: 1427 | B191: 1735 | C191: 1 | D191: 142717351 | E191: -2.217305723 | F191: 0.0002900210711 | G191: -2.18742219 | M191: 142717351 | N191: -2.18742219
A192: 1427 | B192: 14002 | C192: 1 | D192: 1427140021 | E192: -0.3296435079 | F192: 0.0001161431568 | G192: -0.32404477 | M192: 1427140021 | N192: -0.32404477
A193: 1429 | B193: 1719 | C193: 1 | D193: 142917191 | E193: 2.22831059e-36 | F193: 8.491375269e-75 | G193: 0 | M193: 142917191 | N193: 0
A194: 1429 | B194: 14011 | C194: 1 | D194: 1429140111 | E194: -1.195727802e-35 | F194: 1.961709038e-73 | G194: 0 | M194: 1429140111 | N194: 0
A195: 1431 | B195: 1442 | C195: 1 | D195: =_xlfn.CONCAT(A195:C195) -> 143114421 | E195: -5.355604541e-36 | F195: 7.2520833e-74 | G195: =VLOOKUP(D195,M:N,2,0) -> 0 | M195: 143114421 | N195: 0
A196: 1433 | B196: 1772 | C196: 1 | D196: 143317721 | E196: 1.243110803 | F196: 9.805083748e-05 | G196: 1.23375672 | M196: 143317721 | N196: 1.23375672
A197: 1434 | B197: 1795 | C197: 1 | D197: 143417951 | E197: -5.754089362 | F197: 0.01207836179 | G197: -5.81546646 | M197: 143417951 | N197: -5.81546646
A198: 1435 | B198: 1491 | C198: 1 | D198: 143514911 | E198: -1.126225079 | F198: 0.0001089540935 | G198: -1.09714395 | M198: 143514911 | N198: -1.09714395
A199: 1442 | B199: 1495 | C199: 1 | D199: 144214951 | E199: -1.481713316e-36 | F199: 5.758729225e-75 | G199: 0 | M199: 144214951 | N199: 0
A200: 1444 | B200: 1447 | C200: 1 | D200: 144414471 | E200: 2.380997175 | F200: 0 | G200: 2.36649402 | M200: 144414471 | N200: 2.36649402
... 634 more rows

Sheet IEP-TOTAL
A1: nodo | B1: Inyeccion | C1: Retiro
A2: 1101 | B2: 208.32 | C2: 0
A3: 1102 | B3: 22.87 | C3: 35.031
A4: 1103 | B4: 2.125767211e-45 | C4: 0
A5: 1105 | B5: 1.558398724e-45 | C5: 0
A6: 1106 | B6: 2.264847695e-45 | C6: 29.522
A7: 1107 | B7: 0 | C7: 106.915
A8: 1108 | B8: 3.324749304e-45 | C8: 122.561
A9: 1109 | B9: 0 | C9: 162.455
A10: 1110 | B10: 0 | C10: 0
A11: 1111 | B11: 1.083089473e-45 | C11: 2.235574387e-46
A12: 1113 | B12: 1.218682241e-45 | C12: 0
A13: 1114 | B13: 3.914094032e-45 | C13: 0
A14: 1115 | B14: 0 | C14: 0
A15: 1117 | B15: 2.284135645e-45 | C15: 1.162365595e-45
A16: 1119 | B16: 8.923841953e-48 | C16: 0
A17: 1120 | B17: 8.1431 | C17: 0
A18: 1121 | B18: 7.239260901e-46 | C18: 0
A19: 1122 | B19: 4.092090706e-46 | C19: 2.387598454e-45
A20: 1124 | B20: 35.00000059 | C20: 56.09300008
A21: 1126 | B21: 8.82795517e-08 | C21: 59.23709216
A22: 1128 | B22: 1.848056053e-46 | C22: 3.416885113e-47
A23: 1129 | B23: 2.116240126e-47 | C23: 0
A24: 1131 | B24: 1.072882228e-45 | C24: 0
A25: 1132 | B25: 1.461274125e-45 | C25: 6.991594777e-46
A26: 1133 | B26: 17.9537 | C26: 16.8
A27: 1140 | B27: 123.2627 | C27: 26.7
A28: 1141 | B28: 40.032 | C28: 0
A29: 1145 | B29: 39.776 | C29: 0
A30: 1151 | B30: 7.640389726e-46 | C30: 5.868825168e-46
A31: 1153 | B31: 2.774449889e-45 | C31: 1.883536264e-45
A32: 1154 | B32: 0 | C32: 0
A33: 1155 | B33: 0 | C33: 5.669083014e-46
A34: 1159 | B34: 0 | C34: 0
A35: 1163 | B35: 0 | C35: 1.058570361e-45
A36: 1164 | B36: 7.956623009e-46 | C36: 0
A37: 1165 | B37: 49.568 | C37: 0
A38: 1166 | B38: 3.770611787e-46 | C38: 0
A39: 1168 | B39: 47.957 | C39: 0
A40: 1169 | B40: 0 | C40: 7.490904485e-46
A41: 1170 | B41: 1.3496 | C41: 2.151356511e-46
A42: 1174 | B42: 9.737917196e-46 | C42: 2.03907978e-45
A43: 1204 | B43: 5.698876967e-46 | C43: 9.108329804e-46
A44: 1206 | B44: 0 | C44: 0
A45: 1207 | B45: 0 | C45: 8.533575486e-46
A46: 1215 | B46: 0 | C46: 0
A47: 1216 | B47: 1.622545407e-45 | C47: 7.165202004e-46
A48: 1217 | B48: 2.723064729e-46 | C48: 7.505356259e-47
A49: 1218 | B49: 1.802956015e-45 | C49: 0
A50: 1219 | B50: 68.571 | C50: 0
A51: 1220 | B51: 0 | C51: 6.953933904e-46
A52: 1223 | B52: 1.870612382e-45 | C52: 0
A53: 1240 | B53: 5.597771276e-46 | C53: 3.72340316e-46
A54: 1241 | B54: 0 | C54: 0
A55: 1249 | B55: 8.108576302e-46 | C55: 1.693063602e-45
A56: 1251 | B56: 1.23983514e-45 | C56: 0
A57: 1301 | B57: 0 | C57: 0
A58: 1302 | B58: 0 | C58: 8.637725867e-46
A59: 1303 | B59: 0 | C59: 7.760636226e-46
A60: 1304 | B60: 3.01302726e-46 | C60: 3.179685702e-46
A61: 1305 | B61: 0 | C61: 2.247601284e-45
A62: 1306 | B62: 0 | C62: 0
A63: 1308 | B63: 0 | C63: 9.463026765e-46
A64: 1309 | B64: 2.522170079e-47 | C64: 5.521209997e-46
A65: 1310 | B65: 0 | C65: 1.344107707e-45
A66: 1312 | B66: 0 | C66: 4.86336328e-46
A67: 1314 | B67: 4.680549684e-46 | C67: 0
A68: 1315 | B68: 0 | C68: 0
A69: 1318 | B69: 4.315713699e-46 | C69: 0
A70: 1321 | B70: 0 | C70: 5.670526124e-47
A71: 1322 | B71: 0 | C71: 1.191216471e-45
A72: 1323 | B72: 3.138695939e-46 | C72: 0
A73: 1324 | B73: 1.033755501e-45 | C73: 1.16276769e-45
A74: 1325 | B74: 0 | C74: 0
A75: 1327 | B75: 0 | C75: 0
A76: 1329 | B76: 1.921780435e-46 | C76: 7.111399237e-46
A77: 1331 | B77: 0 | C77: 0
A78: 1336 | B78: 9.097444546e-46 | C78: 0
A79: 1337 | B79: 0 | C79: 0
A80: 1338 | B80: 3.790039237e-46 | C80: 1.177472098e-46
A81: 1339 | B81: 4.156270482e-46 | C81: 0
A82: 1372 | B82: 1.372584554e-45 | C82: 0
A83: 1374 | B83: 0 | C83: 0
A84: 1388 | B84: 7.699697184e-47 | C84: 0
A85: 1403 | B85: 1.705927579e-45 | C85: 0
A86: 1406 | B86: 0 | C86: 0
A87: 1407 | B87: 0 | C87: 0
A88: 1408 | B88: 6.122348651e-45 | C88: 0
A89: 1409 | B89: 1.027477829e-45 | C89: 2.930708036e-45
A90: 1411 | B90: 3.2444316e-46 | C90: 0
A91: 1414 | B91: 5.486384157e-45 | C91: 0
A92: 1415 | B92: 0 | C92: 6.18055479e-45
A93: 1416 | B93: 0 | C93: 1.613308097e-45
A94: 1417 | B94: 8.225763941e-46 | C94: 1.743735624e-45
A95: 1418 | B95: 0 | C95: 2.722323151e-45
A96: 1422 | B96: 9.21239551e-46 | C96: 0
A97: 1423 | B97: 2.13622677e-48 | C97: 5.810930057e-47
A98: 1424 | B98: 0 | C98: 0
A99: 1425 | B99: 2.602998869e-46 | C99: 0
A100: 1427 | B100: 2.463215577e-45 | C100: 0
A101: 1428 | B101: 2.076571219e-45 | C101: 5.7683302e-46
A102: 1429 | B102: 0 | C102: 2.742670247e-45
A103: 1431 | B103: 6.23632502e-45 | C103: 7.736158841e-45
A104: 1432 | B104: 3.950478212e-45 | C104: 0
A105: 1433 | B105: 1.269589431e-45 | C105: 0
A106: 1434 | B106: 2.026177627e-45 | C106: 6.721606369e-46
A107: 1435 | B107: 0 | C107: 5.982604044e-46
A108: 1439 | B108: 1.87779261e-45 | C108: 0
A109: 1442 | B109: 1.991065683e-45 | C109: 0
A110: 1444 | B110: 33.241 | C110: 17.748
A111: 1445 | B111: 0 | C111: 0
A112: 1447 | B112: 0 | C112: 4.592994667e-45
A113: 1449 | B113: 1.419142349e-45 | C113: 2.979532984e-45
A114: 1490 | B114: 1.026871106e-44 | C114: 0
A115: 1491 | B115: 5.26681815e-45 | C115: 0
A116: 1492 | B116: 6.640177019e-45 | C116: 0
A117: 1493 | B117: 0 | C117: 4.564072495e-46
A118: 1495 | B118: 0 | C118: 9.58782119e-46
A119: 1497 | B119: 0 | C119: 2.695098867e-45
A120: 1498 | B120: 2.009828548e-45 | C120: 0
A121: 1499 | B121: 0 | C121: 1.879354432e-45
A122: 1501 | B122: 0 | C122: 7.409994807e-48
A123: 1502 | B123: 5.960816431e-47 | C123: 0
A124: 1503 | B124: 3.627721064e-45 | C124: 0
A125: 1504 | B125: 0 | C125: 1.571205414e-46
A126: 1505 | B126: 3.627721064e-45 | C126: 0
A127: 1506 | B127: 2.903133589e-46 | C127: 0
A128: 1507 | B128: 0 | C128: 1.176835033e-45
A129: 1509 | B129: 7.289355135e-46 | C129: 1.828273074e-45
A130: 1511 | B130: 7.289355135e-46 | C130: 1.828273074e-45
A131: 1513 | B131: 0 | C131: 1.497922834e-45
A132: 1516 | B132: 9.134190921e-45 | C132: 0
A133: 1518 | B133: 3.294982374e-45 | C133: 0
A134: 1519 | B134: 0 | C134: 1.552704605e-45
A135: 1520 | B135: 0 | C135: 5.551829531e-46
A136: 1521 | B136: 0 | C136: 4.045270128e-45
A137: 1522 | B137: 0 | C137: 0
A138: 1524 | B138: 0 | C138: 1.030244208e-45
A139: 1526 | B139: 4.665236602e-45 | C139: 5.315289414e-45
A140: 1527 | B140: 0 | C140: 1.403956654e-45
A141: 1528 | B141: 0 | C141: 5.784464009e-46
A142: 1667 | B142: 3.728050062e-45 | C142: 0
A143: 1702 | B143: 3.565828221e-45 | C143: 0
A144: 1710 | B144: 22.91000054 | C144: 44.8752
A145: 1713 | B145: 6.448103942e-45 | C145: 0
A146: 1714 | B146: 1.810283885e-45 | C146: 1.580691949e-45
A147: 1715 | B147: 1.354623943e-45 | C147: 0
A148: 1718 | B148: 0 | C148: 2.074709995e-45
A149: 1719 | B149: 0 | C149: 0
A150: 1730 | B150: 5.608920474e-45 | C150: 0
A151: 1732 | B151: 1.517833459e-45 | C151: 0
A152: 1735 | B152: 0 | C152: 0
A153: 1736 | B153: 0 | C153: 5.547416851e-45
A154: 1755 | B154: 3.82793581e-46 | C154: 0
A155: 1758 | B155: 0 | C155: 0
A156: 1762 | B156: 3.774379254e-45 | C156: 0
A157: 1764 | B157: 0 | C157: 1.937090882e-45
A158: 1771 | B158: 0 | C158: 27.6
A159: 1772 | B159: 5.785645718e-45 | C159: 0
A160: 1795 | B160: 6.089570065e-46 | C160: 0
A161: 1810 | B161: 0 | C161: 0
A162: 1813 | B162: 0 | C162: 3.702671925e-46
A163: 1816 | B163: 1.435247668e-45 | C163: 0
A164: 1820 | B164: 1.009015352e-45 | C164: 0
A165: 1821 | B165: 0 | C165: 6.763886345e-46
A166: 1822 | B166: 0 | C166: 0
A167: 1823 | B167: 3.559790799e-45 | C167: 0
A168: 1828 | B168: 4.481946601e-46 | C168: 8.840444555e-46
A169: 1832 | B169: 0 | C169: 0
A170: 1833 | B170: 4.550334297e-46 | C170: 0
A171: 1835 | B171: 6.702035318e-46 | C171: 0
A172: 1840 | B172: 32.079 | C172: 0
A173: 1841 | B173: 0 | C173: 1.148178386e-45
A174: 1842 | B174: 4.09234086e-46 | C174: 0
A175: 1845 | B175: 1.888792372e-45 | C175: 0
A176: 1846 | B176: 1.060106358e-45 | C176: 0
A177: 1857 | B177: 0 | C177: 2.070598783e-45
A178: 1862 | B178: 1.457118667e-45 | C178: 0
A179: 1863 | B179: 1.248492798e-45 | C179: 7.187350336e-46
A180: 1869 | B180: 4.732218256e-46 | C180: 4.726508435e-46
A181: 1908 | B181: 1.337313985e-45 | C181: 0
A182: 3029 | B182: 3.883 | C182: 34.0642
A183: 3030 | B183: 0 | C183: 31.4686
A184: 3031 | B184: 3.397241818e-44 | C184: 17.0187
A185: 3032 | B185: 88.9786 | C185: 1.6055
A186: 3033 | B186: 0 | C186: 14.9315
A187: 3034 | B187: 99.338 | C187: 29.14059995
A188: 3036 | B188: 0 | C188: 2.180016132e-44
A189: 3037 | B189: 1.819132419e-46 | C189: 51.0562
A190: 3038 | B190: 23.728 | C190: 19.6184
A191: 3040 | B191: 0 | C191: 9.4727
A192: 3045 | B192: 0 | C192: 29.0603
A193: 3049 | B193: 0 | C193: 25.6887
A194: 3052 | B194: 6.306015938e-45 | C194: 41.7441
A195: 3055 | B195: 6.451 | C195: 56.1492
A196: 3059 | B196: 0 | C196: 1.038735809e-45
A197: 3060 | B197: 3.969 | C197: 30.0236
A198: 3064 | B198: 1.373464283e-44 | C198: 2.848
A199: 3075 | B199: 0 | C199: 13.0049
A200: 3077 | B200: 0 | C200: 31.1475
... 357 more rows

Sheet PEXANTES
A1: nodo | B1: Precio Exante
A2: 1101 | B2: 42.23778469 | C2: =VLOOKUP(A2,F:G,2,0) -> 42.23 | F2: 1101 | G2: 42.23
A3: 1102 | B3: 42.44240644 | C3: =VLOOKUP(A3,F:G,2,0) -> 42.44 | F3: 1102 | G3: 42.44
A4: 1103 | B4: 42.10539908 | C4: 42.1 | F4: 1103 | G4: 42.1
A5: 1105 | B5: 42.44240644 | C5: 42.44 | F5: 1105 | G5: 42.44
A6: 1106 | B6: 42.44053152 | C6: 42.43 | F6: 1106 | G6: 42.43
A7: 1107 | B7: 43.17557908 | C7: 43.17 | F7: 1107 | G7: 43.17
A8: 1108 | B8: 43.2528741 | C8: 43.24 | F8: 1108 | G8: 43.24
A9: 1109 | B9: 43.08736688 | C9: 43.08 | F9: 1109 | G9: 43.08
A10: 1110 | B10: 41.97094829 | C10: 41.96 | F10: 1110 | G10: 41.96
A11: 1111 | B11: 42.44240644 | C11: 42.44 | F11: 1111 | G11: 42.44
A12: 1113 | B12: 42.57796794 | C12: 42.57 | F12: 1113 | G12: 42.57
A13: 1114 | B13: 43.02350711 | C13: 43.02 | F13: 1114 | G13: 43.02
A14: 1115 | B14: 42.77574346 | C14: 42.77 | F14: 1115 | G14: 42.77
A15: 1117 | B15: 42.36356623 | C15: 42.36 | F15: 1117 | G15: 42.36
A16: 1119 | B16: 41.98053775 | C16: 41.97 | F16: 1119 | G16: 41.97
A17: 1120 | B17: 42.38783274 | C17: 42.38 | F17: 1120 | G17: 42.38
A18: 1121 | B18: 42.38783274 | C18: 42.38 | F18: 1121 | G18: 42.38
A19: 1122 | B19: 42.85675395 | C19: 42.85 | F19: 1122 | G19: 42.85
A20: 1124 | B20: 42.56507295 | C20: 42.56 | F20: 1124 | G20: 42.56
A21: 1126 | B21: 43 | C21: 43 | F21: 1126 | G21: 43
A22: 1128 | B22: 41.97094829 | C22: 41.96 | F22: 1128 | G22: 41.96
A23: 1129 | B23: 42.98370973 | C23: 42.98 | F23: 1129 | G23: 42.98
A24: 1131 | B24: 42.85675395 | C24: 42.85 | F24: 1131 | G24: 42.85
A25: 1132 | B25: 42.17221912 | C25: 42.17 | F25: 1132 | G25: 42.17
A26: 1133 | B26: 42.52014365 | C26: 42.51 | F26: 1133 | G26: 42.51
A27: 1140 | B27: 42.36356623 | C27: 42.36 | F27: 1140 | G27: 42.36
A28: 1141 | B28: 42.10539908 | C28: 42.1 | F28: 1141 | G28: 42.1
A29: 1145 | B29: 41.95791454 | C29: 41.95 | F29: 1145 | G29: 41.95
A30: 1151 | B30: 42.44209296 | C30: 42.44 | F30: 1151 | G30: 42.44
A31: 1153 | B31: 43.26624245 | C31: 43.26 | F31: 1153 | G31: 43.26
A32: 1154 | B32: 43.06425083 | C32: 43.06 | F32: 1154 | G32: 43.06
A33: 1155 | B33: 43.17557908 | C33: 43.17 | F33: 1155 | G33: 43.17
A34: 1159 | B34: 43.0464609 | C34: 43.04 | F34: 1159 | G34: 43.04
A35: 1163 | B35: 43.06425083 | C35: 43.06 | F35: 1163 | G35: 43.06
A36: 1164 | B36: 42.36356623 | C36: 42.36 | F36: 1164 | G36: 42.36
A37: 1165 | B37: 42.00595846 | C37: 42 | F37: 1165 | G37: 42
A38: 1166 | B38: 42.36356623 | C38: 42.36 | F38: 1166 | G38: 42.36
A39: 1168 | B39: 42.10054133 | C39: 42.09 | F39: 1168 | G39: 42.09
A40: 1169 | B40: 42.0487784 | C40: 42.04 | F40: 1169 | G40: 42.04
A41: 1170 | B41: 42.63398848 | C41: 42.63 | F41: 1170 | G41: 42.63
A42: 1174 | B42: 42.85675395 | C42: 42.85 | F42: 1174 | G42: 42.85
A43: 1204 | B43: 43.06425083 | C43: 43.06 | F43: 12007 | G43: 43.06
A44: 1206 | B44: 42.44209296 | C44: 42.44 | F44: 12029 | G44: 42.44
A45: 1207 | B45: 42.44209296 | C45: 42.44 | F45: 12030 | G45: 42.44
A46: 1215 | B46: 43.06425083 | C46: 43.06 | F46: 12031 | G46: 42.44
A47: 1216 | B47: 43.06425083 | C47: 43.06 | F47: 12036 | G47: 43.06
A48: 1217 | B48: 42.44209296 | C48: 42.44 | F48: 1204 | G48: 43.06
A49: 1218 | B49: 42.1442581 | C49: 42.14 | F49: 12047 | G49: 42.44
A50: 1219 | B50: 42.1442581 | C50: 42.14 | F50: 12049 | G50: 43.06
A51: 1220 | B51: 42.35667335 | C51: 42.35 | F51: 1206 | G51: 42.44
A52: 1223 | B52: 42.36356623 | C52: 42.36 | F52: 1207 | G52: 42.44
A53: 1240 | B53: 42.39541676 | C53: 42.39 | F53: 12080 | G53: 43.06
A54: 1241 | B54: 42.35667335 | C54: 42.35 | F54: 12089 | G54: 43.06
A55: 1249 | B55: 43.06425083 | C55: 43.06 | F55: 12094 | G55: 43.06
A56: 1251 | B56: 42.44209296 | C56: 42.44 | F56: 12108 | G56: 42.44
A57: 1301 | B57: 42.83048627 | C57: 42.82 | F57: 12127 | G57: 43.06
A58: 1302 | B58: 41.94580636 | C58: 41.94 | F58: 12129 | G58: 43.06
A59: 1303 | B59: 42.26851694 | C59: 42.26 | F59: 12136 | G59: 42.44
A60: 1304 | B60: 41.96556319 | C60: 41.96 | F60: 12142 | G60: 42.44
A61: 1305 | B61: 41.98053775 | C61: 41.97 | F61: 12144 | G61: 42.44
A62: 1306 | B62: 41.94836708 | C62: 41.94 | F62: 1215 | G62: 43.06
A63: 1308 | B63: 41.97152269 | C63: 41.97 | F63: 12154 | G63: 43.06
A64: 1309 | B64: 42.03786148 | C64: 42.03 | F64: 1216 | G64: 43.06
A65: 1310 | B65: 41.9483687 | C65: 41.94 | F65: 1217 | G65: 42.44
A66: 1312 | B66: 41.97152269 | C66: 41.97 | F66: 12177 | G66: 42.44
A67: 1314 | B67: 41.95558467 | C67: =VLOOKUP(A67,F:G,2,0) -> 41.95 | F67: 12178 | G67: 42.44
A68: 1315 | B68: 42.34012667 | C68: 42.33 | F68: 1218 | G68: 42.14
A69: 1318 | B69: 42.10350335 | C69: 42.1 | F69: 12183 | G69: 43.06
A70: 1321 | B70: 41.96009436 | C70: 41.95 | F70: 1219 | G70: 42.14
A71: 1322 | B71: 41.95808055 | C71: 41.95 | F71: 12195 | G71: 43.06
A72: 1323 | B72: 41.94836708 | C72: 41.94 | F72: 1220 | G72: 42.35
A73: 1324 | B73: 41.96894287 | C73: 41.96 | F73: 12204 | G73: 42.44
A74: 1325 | B74: 41.98053775 | C74: 41.97 | F74: 12205 | G74: 42.44
A75: 1327 | B75: 41.98053775 | C75: 41.97 | F75: 12218 | G75: 43.06
A76: 1329 | B76: 41.98539331 | C76: 41.98 | F76: 12219 | G76: 42.35
A77: 1331 | B77: 42.981326 | C77: 42.97 | F77: 12220 | G77: 42.35
A78: 1336 | B78: 42.00599261 | C78: 42 | F78: 12221 | G78: 43.06
A79: 1337 | B79: 42.00599261 | C79: 42 | F79: 12225 | G79: 43.06
A80: 1338 | B80: 41.964766 | C80: 41.96 | F80: 1223 | G80: 42.36
A81: 1339 | B81: 41.95558467 | C81: 41.95 | F81: 12234 | G81: 43.06
A82: 1372 | B82: 41.96894287 | C82: 41.96 | F82: 12238 | G82: 43.06
A83: 1374 | B83: 41.9508832 | C83: 41.94 | F83: 12239 | G83: 43.06
A84: 1388 | B84: 41.98053775 | C84: 41.97 | F84: 12241 | G84: 42.44
A85: 1403 | B85: 42.63414849 | C85: 42.63 | F85: 12242 | G85: 43.06
A86: 1406 | B86: 43.13183572 | C86: 43.12 | F86: 12243 | G86: 43.06
A87: 1407 | B87: 43.93662483 | C87: 43.92 | F87: 12251 | G87: 43.06
A88: 1408 | B88: 43.48214365 | C88: 43.47 | F88: 12254 | G88: 43.06
A89: 1409 | B89: 44.14668555 | C89: 44.13 | F89: 12257 | G89: 43.06
A90: 1411 | B90: 43.28004615 | C90: 43.28 | F90: 12258 | G90: 43.06
A91: 1414 | B91: 43.55541247 | C91: 43.54 | F91: 12269 | G91: 43.06
A92: 1415 | B92: 43.11589752 | C92: 43.11 | F92: 12280 | G92: 43.06
A93: 1416 | B93: 42.63414849 | C93: 42.63 | F93: 12281 | G93: 42.44
A94: 1417 | B94: 42.7315834 | C94: 42.72 | F94: 12282 | G94: 42.44
A95: 1418 | B95: 44.01436091 | C95: 44 | F95: 12283 | G95: 42.44
A96: 1422 | B96: 43.29099164 | C96: 43.29 | F96: 12285 | G96: 42.44
A97: 1423 | B97: 42.83550721 | C97: 42.83 | F97: 12292 | G97: 42.44
A98: 1424 | B98: 43.93662483 | C98: 43.92 | F98: 12294 | G98: 42.44
A99: 1425 | B99: 43.10092959 | C99: 43.09 | F99: 12295 | G99: 42.44
A100: 1427 | B100: 42.80500604 | C100: 42.8 | F100: 12305 | G100: 42.44
A101: 1428 | B101: 43.28004615 | C101: 43.28 | F101: 1240 | G101: 42.39
A102: 1429 | B102: 42.63414849 | C102: 42.63 | F102: 1241 | G102: 42.35
A103: 1431 | B103: 43.41102411 | C103: 43.4 | F103: 1249 | G103: 43.06
A104: 1432 | B104: 44.094562 | C104: 44.08 | F104: 1251 | G104: 42.44
A105: 1433 | B105: 43.98833632 | C105: 43.97 | F105: 1301 | G105: 42.82
A106: 1434 | B106: 43.05754671 | C106: 43.06 | F106: 1302 | G106: 41.94
A107: 1435 | B107: 44.11995985 | C107: 44.1 | F107: 1303 | G107: 42.26
A108: 1439 | B108: 43.1019885 | C108: 43.09 | F108: 1304 | G108: 41.96
A109: 1442 | B109: 43.41102411 | C109: 43.4 | F109: 1305 | G109: 41.97
A110: 1444 | B110: 42.52914482 | C110: 42.52 | F110: 1306 | G110: 41.94
A111: 1445 | B111: 43.59344219 | C111: 43.58 | F111: 1308 | G111: 41.97
A112: 1447 | B112: 42.62872047 | C112: 42.62 | F112: 1309 | G112: 42.03
A113: 1449 | B113: 42.95216817 | C113: 42.94 | F113: 1310 | G113: 41.94
A114: 1490 | B114: 44.10879096 | C114: 44.09 | F114: 1312 | G114: 41.97
A115: 1491 | B115: 44.11216577 | C115: 44.09 | F115: 1314 | G115: 41.95
A116: 1492 | B116: 44.11047835 | C116: 44.09 | F116: 1315 | G116: 42.33
A117: 1493 | B117: 43.68843629 | C117: 43.68 | F117: 1318 | G117: 42.1
A118: 1495 | B118: 43.41102411 | C118: 43.4 | F118: 1321 | G118: 41.95
A119: 1497 | B119: 43.86474977 | C119: 43.85 | F119: 1322 | G119: 41.95
A120: 1498 | B120: 44.00430341 | C120: 43.99 | F120: 1323 | G120: 41.94
A121: 1499 | B121: 44.079215 | C121: 44.06 | F121: 1324 | G121: 41.96
A122: 1501 | B122: 41.9542088 | C122: 41.95 | F122: 1325 | G122: 41.97
A123: 1502 | B123: 42.5424134 | C123: 42.54 | F123: 1327 | G123: 41.97
A124: 1503 | B124: 43.26292765 | C124: 43.25 | F124: 1329 | G124: 41.98
A125: 1504 | B125: 42.44168868 | C125: 42.44 | F125: 1331 | G125: 42.97
A126: 1505 | B126: 43.26292765 | C126: 43.25 | F126: 1336 | G126: 42
A127: 1506 | B127: 41.96944035 | C127: 41.96 | F127: 1337 | G127: 42
A128: 1507 | B128: 43.17557908 | C128: 43.17 | F128: 1338 | G128: 41.96
A129: 1509 | B129: 43.05370613 | C129: 43.05 | F129: 1339 | G129: 41.95
A130: 1511 | B130: 43.05370613 | C130: 43.05 | F130: 1372 | G130: 41.96
A131: 1513 | B131: 43.06974375 | C131: =VLOOKUP(A131,F:G,2,0) -> 43.06 | F131: 1374 | G131: 41.94
A132: 1516 | B132: 44.16823728 | C132: 44.15 | F132: 1388 | G132: 41.97
A133: 1518 | B133: 43.26292765 | C133: 43.25 | F133: 14002 | G133: 42.75
A134: 1519 | B134: 41.98053775 | C134: 41.97 | F134: 14005 | G134: 42.74
A135: 1520 | B135: 41.98053775 | C135: 41.97 | F135: 14011 | G135: 42.63
A136: 1521 | B136: 44.09374949 | C136: 44.08 | F136: 1403 | G136: 42.63
A137: 1522 | B137: 43.17557908 | C137: 43.17 | F137: 1406 | G137: 43.12
A138: 1524 | B138: 44.1550051 | C138: 44.14 | F138: 1407 | G138: 43.92
A139: 1526 | B139: 44.05885544 | C139: 44.04 | F139: 1408 | G139: 43.47
A140: 1527 | B140: 42.73684425 | C140: 42.73 | F140: 1409 | G140: 44.13
A141: 1528 | B141: 41.98053775 | C141: 41.97 | F141: 1411 | G141: 43.28
A142: 1667 | B142: 43.48214365 | C142: 43.47 | F142: 1414 | G142: 43.54
A143: 1702 | B143: 42.63414849 | C143: 42.63 | F143: 1415 | G143: 43.11
A144: 1710 | B144: 44.22845579 | C144: 44.21 | F144: 1416 | G144: 42.63
A145: 1713 | B145: 44.07037733 | C145: 44.05 | F145: 1417 | G145: 42.72
A146: 1714 | B146: 44.07520233 | C146: 44.06 | F146: 1418 | G146: 44
A147: 1715 | B147: 44.0727898 | C147: 44.06 | F147: 1422 | G147: 43.29
A148: 1718 | B148: 42.7315834 | C148: 42.72 | F148: 1423 | G148: 42.83
A149: 1719 | B149: 42.63414849 | C149: 42.63 | F149: 1424 | G149: 43.92
A150: 1730 | B150: 42.6239278 | C150: 42.62 | F150: 1425 | G150: 43.09
A151: 1732 | B151: 44.1534124 | C151: 44.13 | F151: 1427 | G151: 42.8
A152: 1735 | B152: 42.77624173 | C152: 42.77 | F152: 1428 | G152: 43.28
A153: 1736 | B153: 44.02592267 | C153: 44.01 | F153: 1429 | G153: 42.63
A154: 1755 | B154: 42.65779953 | C154: 42.65 | F154: 1431 | G154: 43.4
A155: 1758 | B155: 42.66226168 | C155: 42.66 | F155: 1432 | G155: 44.08
A156: 1762 | B156: 43.28004615 | C156: 43.28 | F156: 14320 | G156: 41.96
A157: 1764 | B157: 42.63414849 | C157: 42.63 | F157: 1433 | G157: 43.97
A158: 1771 | B158: 44.24724633 | C158: 44.23 | F158: 1434 | G158: 43.06
A159: 1772 | B159: 44.06281877 | C159: 44.05 | F159: 1435 | G159: 44.1
A160: 1795 | B160: 42.84182885 | C160: 42.84 | F160: 1439 | G160: 43.09
A161: 1810 | B161: 42.65394532 | C161: 42.65 | F161: 1442 | G161: 43.4
A162: 1813 | B162: 41.95605512 | C162: 41.95 | F162: 1444 | G162: 42.52
A163: 1816 | B163: 42.15597403 | C163: 42.15 | F163: 1445 | G163: 43.58
A164: 1820 | B164: 41.98053775 | C164: 41.97 | F164: 1447 | G164: 42.62
A165: 1821 | B165: 41.98053775 | C165: 41.97 | F165: 1449 | G165: 42.94
A166: 1822 | B166: 41.98053775 | C166: 41.97 | F166: 1490 | G166: 44.09
A167: 1823 | B167: 42.05258718 | C167: 42.05 | F167: 1491 | G167: 44.09
A168: 1828 | B168: 41.94836708 | C168: 41.94 | F168: 1492 | G168: 44.09
A169: 1832 | B169: 41.98053775 | C169: 41.97 | F169: 1493 | G169: 43.68
A170: 1833 | B170: 42.30406991 | C170: 42.3 | F170: 1495 | G170: 43.4
A171: 1835 | B171: 42.1270589 | C171: 42.12 | F171: 1497 | G171: 43.85
A172: 1840 | B172: 41.91642623 | C172: 41.91 | F172: 1498 | G172: 43.99
A173: 1841 | B173: 41.98053775 | C173: 41.97 | F173: 1499 | G173: 44.06
A174: 1842 | B174: 41.98053775 | C174: 41.97 | F174: 1501 | G174: 41.95
A175: 1845 | B175: 42.05258718 | C175: 42.05 | F175: 1502 | G175: 42.54
A176: 1846 | B176: 41.97042627 | C176: 41.96 | F176: 1503 | G176: 43.25
A177: 1857 | B177: 41.94836708 | C177: 41.94 | F177: 1504 | G177: 42.44
A178: 1862 | B178: 41.94706668 | C178: 41.94 | F178: 1505 | G178: 43.25
A179: 1863 | B179: 41.94836708 | C179: 41.94 | F179: 1506 | G179: 41.96
A180: 1869 | B180: 41.94836708 | C180: 41.94 | F180: 1507 | G180: 43.17
A181: 1908 | B181: 42.23778469 | C181: 42.23 | F181: 1509 | G181: 43.05
A182: 3029 | B182: 45.06756602 | F182: 1511 | G182: 43.05
A183: 3030 | B183: 44.04027113 | F183: 1513 | G183: 43.06
A184: 3031 | B184: 43.88992538 | F184: 1516 | G184: 44.15
A185: 3032 | B185: 44.06853637 | F185: 1518 | G185: 43.25
A186: 3033 | B186: 43.95659453 | F186: 1519 | G186: 41.97
A187: 3034 | B187: 43.10129389 | F187: 1520 | G187: 41.97
A188: 3036 | B188: 44.54381993 | F188: 1521 | G188: 44.08
A189: 3037 | B189: 44.44449278 | F189: 1522 | G189: 43.17
A190: 3038 | B190: 44.44890134 | F190: 1524 | G190: 44.14
A191: 3040 | B191: 43.75584779 | F191: 1526 | G191: 44.04
A192: 3045 | B192: 44.62210455 | F192: 1527 | G192: 42.73
A193: 3049 | B193: 43.81122263 | F193: 1528 | G193: 41.97
A194: 3052 | B194: 44.60744297 | F194: 1667 | G194: 43.47
A195: 3055 | B195: 49.31419295 | C195: =VLOOKUP(A195,F:G,2,0) ->  | F195: 1702 | G195: 42.63
A196: 3059 | B196: 44.05097376 | F196: 1710 | G196: 44.21
A197: 3060 | B197: 45.06669931 | F197: 1713 | G197: 44.05
A198: 3064 | B198: 45.26756327 | F198: 1714 | G198: 44.06
A199: 3075 | B199: 44.36118056 | F199: 1715 | G199: 44.06
A200: 3077 | B200: 44.36793042 | F200: 1718 | G200: 42.72
... 357 more rows

Sheet TOP-I
A1: N° | B1: Pi Bloque 1 | C1: Pi Bloque 2 | D1: Pi Bloque 3 | E1: Pi Bloque 4 | F1: Pi Bloque 5
A2: 1 | B2: 0 | C2: 9.795756618e-09 | D2: 9.795756618e-09 | E2: 9.795756618e-09 | F2: 9.795756618e-09
A3: 2 | B3: 0 | C3: 9.800958246e-09 | D3: 9.800958246e-09 | E3: 9.800958246e-09 | F3: 9.800958246e-09
A4: 3 | B4: 0 | C4: 9.800958246e-09 | D4: 9.800958246e-09 | E4: 9.800958246e-09 | F4: 9.800958246e-09
A5: 4 | B5: 0 | C5: 9.800958246e-09 | D5: 9.800958246e-09 | E5: 9.800958246e-09 | F5: 9.800958246e-09
A6: 5 | B6: 0 | C6: 9.800958246e-09 | D6: 9.800958246e-09 | E6: 9.800958246e-09 | F6: 9.800958246e-09
A7: 6 | B7: 0 | C7: 9.800958246e-09 | D7: 9.800958246e-09 | E7: 9.800958246e-09 | F7: 9.800958246e-09
A8: 7 | B8: 0 | C8: 9.795756618e-09 | D8: 9.795756618e-09 | E8: 9.795756618e-09 | F8: 9.795756618e-09
A9: 8 | B9: 0 | C9: 9.800958246e-09 | D9: 9.800958246e-09 | E9: 9.800958246e-09 | F9: 9.800958246e-09
A10: 10 | B10: 0 | C10: 9.793262027e-09 | D10: 9.793262027e-09 | E10: 9.793262027e-09 | F10: 9.793262027e-09
A11: 11 | B11: 0 | C11: 9.793262027e-09 | D11: 9.793262027e-09 | E11: 9.793262027e-09 | F11: 9.793262027e-09
A12: 12 | B12: 0 | C12: 9.795756618e-09 | D12: 9.795756618e-09 | E12: 9.795756618e-09 | F12: 9.795756618e-09
A13: 13 | B13: 0 | C13: 9.793262027e-09 | D13: 9.793262027e-09 | E13: 9.793262027e-09 | F13: 9.793262027e-09
A14: 14 | B14: 0 | C14: 9.793262027e-09 | D14: 9.793262027e-09 | E14: 9.793262027e-09 | F14: 9.793262027e-09
A15: 15 | B15: 0 | C15: 9.793262027e-09 | D15: 9.793262027e-09 | E15: 9.793262027e-09 | F15: 9.793262027e-09
A16: 16 | B16: 0 | C16: 9.793262027e-09 | D16: 9.793262027e-09 | E16: 9.793262027e-09 | F16: 9.793262027e-09
A17: 17 | B17: 0 | C17: 9.793262027e-09 | D17: 9.793262027e-09 | E17: 9.793262027e-09 | F17: 9.793262027e-09
A18: 18 | B18: 0 | C18: 9.800958246e-09 | D18: 9.800958246e-09 | E18: 9.800958246e-09 | F18: 9.800958246e-09
A19: 19 | B19: 0 | C19: 0 | D19: 0 | E19: 9.79898e-09 | F19: 9.79898e-09
A20: 20 | B20: 0 | C20: 9.795374011e-09 | D20: 9.795374011e-09 | E20: 9.795374011e-09 | F20: 9.795374011e-09
A21: 21 | B21: 0 | C21: 9.796450931e-09 | D21: 9.796450931e-09 | E21: 9.796450931e-09 | F21: 9.796450931e-09
A22: 22 | B22: 0 | C22: 9.795374011e-09 | D22: 9.795374011e-09 | E22: 9.795374011e-09 | F22: 9.795374011e-09
A23: 23 | B23: 0 | C23: 0 | D23: 9.795241904e-09 | E23: 9.795241904e-09 | F23: 9.795241904e-09
A24: 24 | B24: 3.035648613e-09 | C24: 0 | D24: 0 | E24: 9.82367973e-09 | F24: 9.82367973e-09
A25: 25 | B25: 0 | C25: 0 | D25: 9.82367973e-09 | E25: 9.82367973e-09 | F25: 9.82367973e-09
A26: 26 | B26: 0 | C26: 0 | D26: 9.796295943e-09 | E26: 9.796295943e-09 | F26: 9.796295943e-09
A27: 27 | B27: 0 | C27: 0 | D27: 9.795374011e-09 | E27: 9.795374011e-09 | F27: 9.795374011e-09
A28: 28 | B28: 0 | C28: 0 | D28: 0 | E28: 0 | F28: 0
A29: 29 | B29: 0 | C29: 0 | D29: 9.79898e-09 | E29: 9.79898e-09 | F29: 9.79898e-09
A30: 30 | B30: 0 | C30: 9.797743009e-09 | D30: 9.797743009e-09 | E30: 9.797743009e-09 | F30: 9.797743009e-09
A31: 31 | B31: 0 | C31: 9.797514608e-09 | D31: 9.797514608e-09 | E31: 9.797514608e-09 | F31: 9.797514608e-09
A32: 32 | B32: 0 | C32: 9.796044269e-09 | D32: 9.796044269e-09 | E32: 9.796044269e-09 | F32: 9.796044269e-09
A33: 33 | B33: 0 | C33: 9.798616412e-09 | D33: 9.798616412e-09 | E33: 9.798616412e-09 | F33: 9.798616412e-09
A34: 34 | B34: 0 | C34: 9.806915906e-09 | D34: 9.806915906e-09 | E34: 9.806915906e-09 | F34: 9.806915906e-09
A35: 35 | B35: 0 | C35: 9.804474144e-09 | D35: 9.804474144e-09 | E35: 9.804474144e-09 | F35: 9.804474144e-09
A36: 36 | B36: 0 | C36: 9.810661382e-09 | D36: 9.810661382e-09 | E36: 9.810661382e-09 | F36: 9.810661382e-09
A37: 37 | B37: 0 | C37: 9.810661382e-09 | D37: 9.810661382e-09 | E37: 9.810661382e-09 | F37: 9.810661382e-09
A38: 38 | B38: 4.549574972 | C38: 9.804035057e-09 | D38: 9.804035057e-09 | E38: 9.804035057e-09 | F38: 9.804035057e-09
A39: 39 | B39: 0 | C39: 9.804710237e-09 | D39: 9.804710237e-09 | E39: 9.804710237e-09 | F39: 9.804710237e-09
A40: 40 | B40: 0 | C40: 9.81033711e-09 | D40: 9.81033711e-09 | E40: 9.81033711e-09 | F40: 9.81033711e-09
A41: 41 | B41: 0 | C41: 9.804474144e-09 | D41: 9.804474144e-09 | E41: 9.804474144e-09 | F41: 9.804474144e-09
A42: 42 | B42: 0 | C42: 9.810661382e-09 | D42: 9.810661382e-09 | E42: 9.810661382e-09 | F42: 9.810661382e-09
A43: 43 | B43: 0 | C43: 9.810661382e-09 | D43: 9.810661382e-09 | E43: 9.810661382e-09 | F43: 9.810661382e-09
A44: 44 | B44: 4.549574972 | C44: 9.804035057e-09 | D44: 9.804035057e-09 | E44: 9.804035057e-09 | F44: 9.804035057e-09
A45: 45 | B45: 0 | C45: 9.804710237e-09 | D45: 9.804710237e-09 | E45: 9.804710237e-09 | F45: 9.804710237e-09
A46: 46 | B46: 0 | C46: 9.81033711e-09 | D46: 9.81033711e-09 | E46: 9.81033711e-09 | F46: 9.81033711e-09
A47: 47 | B47: 0 | C47: 9.810661382e-09 | D47: 9.810661382e-09 | E47: 9.810661382e-09 | F47: 9.810661382e-09
A48: 48 | B48: 0 | C48: 9.810661382e-09 | D48: 9.810661382e-09 | E48: 9.810661382e-09 | F48: 9.810661382e-09
A49: 49 | B49: 0 | C49: 9.804474144e-09 | D49: 9.804474144e-09 | E49: 9.804474144e-09 | F49: 9.804474144e-09
A50: 50 | B50: 0 | C50: 9.810661382e-09 | D50: 9.810661382e-09 | E50: 9.810661382e-09 | F50: 9.810661382e-09
A51: 51 | B51: 0 | C51: 9.810661382e-09 | D51: 9.810661382e-09 | E51: 9.810661382e-09 | F51: 9.810661382e-09
A52: 52 | B52: 4.549574972 | C52: 9.804035057e-09 | D52: 9.804035057e-09 | E52: 9.804035057e-09 | F52: 9.804035057e-09
A53: 53 | B53: 0 | C53: 9.804710237e-09 | D53: 9.804710237e-09 | E53: 9.804710237e-09 | F53: 9.804710237e-09
A54: 54 | B54: 0 | C54: 9.81033711e-09 | D54: 9.81033711e-09 | E54: 9.81033711e-09 | F54: 9.81033711e-09
A55: 55 | B55: 0 | C55: 9.81103988e-09 | D55: 9.81103988e-09 | E55: 9.81103988e-09 | F55: 9.81103988e-09
A56: 56 | B56: 0 | C56: 9.81103988e-09 | D56: 9.81103988e-09 | E56: 9.81103988e-09 | F56: 9.81103988e-09
A57: 57 | B57: 0 | C57: 9.804474144e-09 | D57: 9.804474144e-09 | E57: 9.804474144e-09 | F57: 9.804474144e-09
A58: 58 | B58: 0 | C58: 9.810661382e-09 | D58: 9.810661382e-09 | E58: 9.810661382e-09 | F58: 9.810661382e-09
A59: 59 | B59: 0 | C59: 9.810661382e-09 | D59: 9.810661382e-09 | E59: 9.810661382e-09 | F59: 9.810661382e-09
A60: 60 | B60: 4.58160226 | C60: 9.804035057e-09 | D60: 9.804035057e-09 | E60: 9.804035057e-09 | F60: 9.804035057e-09
A61: 61 | B61: 0 | C61: 9.804710237e-09 | D61: 9.804710237e-09 | E61: 9.804710237e-09 | F61: 9.804710237e-09
A62: 62 | B62: 0 | C62: 9.81033711e-09 | D62: 9.81033711e-09 | E62: 9.81033711e-09 | F62: 9.81033711e-09
A63: 63 | B63: 0 | C63: 9.804474144e-09 | D63: 9.804474144e-09 | E63: 9.804474144e-09 | F63: 9.804474144e-09
A64: 64 | B64: 0 | C64: 9.810661382e-09 | D64: 9.810661382e-09 | E64: 9.810661382e-09 | F64: 9.810661382e-09
A65: 65 | B65: 0 | C65: 9.810661382e-09 | D65: 9.810661382e-09 | E65: 9.810661382e-09 | F65: 9.810661382e-09
A66: 66 | B66: 4.58160226 | C66: 9.804035057e-09 | D66: 9.804035057e-09 | E66: 9.804035057e-09 | F66: 9.804035057e-09
A67: 67 | B67: 0 | C67: 9.804710237e-09 | D67: 9.804710237e-09 | E67: 9.804710237e-09 | F67: 9.804710237e-09
A68: 68 | B68: 0 | C68: 9.81033711e-09 | D68: 9.81033711e-09 | E68: 9.81033711e-09 | F68: 9.81033711e-09

Sheet TOP-R
A1: N° | B1: Pr Bloque 1 | C1: Pr Bloque 2 | D1: Pr Bloque 3 | E1: Pr Bloque 4 | F1: Pr Bloque 5
A2: 1 | B2: 5.229968289e-10 | C2: 0 | D2: 0 | E2: 0 | F2: 0
A3: 2 | B3: 9.757550122e-08 | C3: 0 | D3: 0 | E3: 0 | F3: 0
A4: 3 | B4: 0 | C4: 0 | D4: 0 | E4: 0 | F4: 0
A5: 4 | B5: 7.847909169e-08 | C5: 0 | D5: 0 | E5: 0 | F5: 0
A6: 5 | B6: 0 | C6: 0 | D6: 0 | E6: 0 | F6: 0
A7: 6 | B7: 0 | C7: 0 | D7: 0 | E7: 0 | F7: 0
A8: 7 | B8: 0 | C8: 0 | D8: 0 | E8: 0 | F8: 0
A9: 8 | B9: 0 | C9: 0 | D9: 0 | E9: 0 | F9: 0
A10: 9 | B10: 1.290353507e-07 | C10: 0 | D10: 0 | E10: 0 | F10: 0
A11: 10 | B11: 0 | C11: 0 | D11: 0 | E11: 0 | F11: 0
A12: 11 | B12: 6.398420027e-09 | C12: 3.162005473e-09 | D12: 0 | E12: 0 | F12: 0
A13: 12 | B13: 6.556401999e-09 | C13: 4.677063496e-09 | D13: 0 | E13: 0 | F13: 0
A14: 13 | B14: 0 | C14: 0 | D14: 0 | E14: 0 | F14: 0
A15: 14 | B15: 2.694279062e-08 | C15: 0 | D15: 0 | E15: 0 | F15: 0
A16: 15 | B16: 0 | C16: 0 | D16: 0 | E16: 0 | F16: 0
A17: 16 | B17: 5.000000047 | C17: 0 | D17: 0 | E17: 0 | F17: 0
A18: 17 | B18: 5.000000047 | C18: 0 | D18: 0 | E18: 0 | F18: 0
A19: 18 | B19: 2.800000023 | C19: 0 | D19: 0 | E19: 0 | F19: 0
A20: 19 | B20: 8.50000008 | C20: 0 | D20: 0 | E20: 0 | F20: 0
A21: 20 | B21: 0 | C21: 0 | D21: 0 | E21: 0 | F21: 0
A22: 21 | B22: 3.074898061e-08 | C22: 0 | D22: 0 | E22: 0 | F22: 0

Sheet TCP-CF
A1: N° | B1: Pfi Bloque 1 | C1: Pfi Bloque 2 | D1: Pfi Bloque 3 | E1: Pfi Bloque 4 | F1: Pfi Bloque 5
A2: 1 | B2: 5.910000058 | C2: 9.800958246e-09 | D2: 9.800958246e-09 | E2: 9.800958246e-09 | F2: 9.800958246e-09
A3: 2 | B3: 35.00000034 | C3: 9.793262027e-09 | D3: 9.793262027e-09 | E3: 9.793262027e-09 | F3: 9.793262027e-09
A4: 3 | B4: 12.00000012 | C4: 9.804810328e-09 | D4: 9.804810328e-09 | E4: 9.804810328e-09 | F4: 9.804810328e-09
A5: 4 | B5: 25.00000025 | C5: 9.800004166e-09 | D5: 9.800004166e-09 | E5: 9.800004166e-09 | F5: 9.800004166e-09
A6: 5 | B6: 12.00000012 | C6: 9.800004166e-09 | D6: 9.800004166e-09 | E6: 9.800004166e-09 | F6: 9.800004166e-09

Sheet TCP-CNFFF-1
A1: N° | B1: Pffr Bloque 1 | C1: Pffr Bloque 2 | D1: Pffr Bloque 3 | E1: Pffr Bloque 4 | F1: Pffr Bloque 5 | G1: Pffi Bloque 1 | H1: Pffi Bloque 2 | I1: Pffi Bloque 3 | J1: Pffi Bloque 4 | K1: Pffi Bloque 5 | L1: Pfft Bloque 1 | M1: Pfft Bloque 2 | N1: Pfft Bloque 3 | O1: Pfft Bloque 4 | P1: Pfft Bloque 5
A2: 1 | B2: 0 | C2: 0 | D2: 0 | E2: 0 | F2: 0 | G2: 0 | H2: 9.795241904e-09 | I2: 9.795241904e-09 | J2: 9.795241904e-09 | K2: 9.795241904e-09 | L2: 17.00000016 | M2: 5.182864635e-09 | N2: 5.182864635e-09 | O2: 5.182864635e-09 | P2: 5.182864635e-09
A3: 2 | B3: 15.00000015 | C3: 0 | D3: 0 | E3: 0 | F3: 0 | G3: 9.793262027e-09 | H3: 9.793262027e-09 | I3: 9.793262027e-09 | J3: 9.793262027e-09 | K3: 9.793262027e-09 | L3: 15.00000014 | M3: 5.428838591e-09 | N3: 5.428838591e-09 | O3: 5.428838591e-09 | P3: 5.428838591e-09
A4: 3 | B4: 10.0000001 | C4: 0 | D4: 0 | E4: 0 | F4: 0 | G4: 5.421907911 | H4: 9.795331252e-09 | I4: 9.795331252e-09 | J4: 9.795331252e-09 | K4: 9.795331252e-09 | L4: 10.00000009 | M4: 4.323017032e-09 | N4: 4.323017032e-09 | O4: 4.323017032e-09 | P4: 4.323017032e-09
A5: 4 | B5: 0 | C5: 0 | D5: 0 | E5: 0 | F5: 0 | G5: 3.599000027 | H5: 9.793019815e-09 | I5: 9.793019815e-09 | J5: 9.793019815e-09 | K5: 9.793019815e-09 | L5: 3.599000033 | M5: 7.526699698e-09 | N5: 7.526699698e-09 | O5: 7.526699698e-09 | P5: 7.526699698e-09
A6: 5 | B6: 0 | C6: 0 | D6: 0 | E6: 0 | F6: 0 | G6: 1.401000004 | H6: 9.792299517e-09 | I6: 9.792299517e-09 | J6: 9.792299517e-09 | K6: 9.792299517e-09 | L6: 1.401000011 | M6: 7.118592396e-09 | N6: 7.118592396e-09 | O6: 7.118592396e-09 | P6: 7.118592396e-09
A7: 6 | B7: 0 | C7: 0 | D7: 0 | E7: 0 | F7: 0 | G7: 4.751000039 | H7: 9.793019837e-09 | I7: 9.793019837e-09 | J7: 9.793019837e-09 | K7: 9.793019837e-09 | L7: 4.751000045 | M7: 7.526593278e-09 | N7: 7.526593278e-09 | O7: 7.526593278e-09 | P7: 7.526593278e-09
A8: 7 | B8: 0 | C8: 0 | D8: 0 | E8: 0 | F8: 0 | G8: 1.849000008 | H8: 9.792299037e-09 | I8: 9.792299037e-09 | J8: 9.792299037e-09 | K8: 9.792299037e-09 | L8: 1.849000015 | M8: 7.118584967e-09 | N8: 7.118584967e-09 | O8: 7.118584967e-09 | P8: 7.118584967e-09

Sheet TCP-CNFFF-2
A1: N° | B1: Inyeccion | C1: Retiro
A2: 1 | B2: 17.00000023 | C2: 17.00000015
A3: 2 | B3: 5.534681329e-08 | C3: 15.00000012
A4: 3 | B4: 4.758431318e-08 | C4: 4.578092157
A5: 4 | B5: 3.599000112 | C5: 0
A6: 5 | B6: 1.401000088 | C6: 0
A7: 6 | B7: 4.751000124 | C7: 0
A8: 7 | B8: 1.849000093 | C8: 0
